[Event "*** SCC Grand Prix: Titled Tuesday Blitz"]
[Site "Chess.com"]
[Date "2020.06.02"]
[Round "2"]
[White "jb2mix"]
[Black "Flawless_Fighter"]
[Result "1-0"]
[WhiteElo "2703"]
[BlackElo "2463"]
[TimeControl "180+1"]
[EndTime "10:17:41 PDT"]
[Termination "jb2mix won by resignation"]

1. e4 {[%clk 0:03:00]} 1... c6 {[%clk 0:02:59.5]} 2. d4 {[%clk 0:03:00]} 2... d5
{[%clk 0:03:00.4]} 3. Nc3 {[%clk 0:03:00.3]} 3... dxe4 {[%clk 0:03:00.4]} 4.
Nxe4 {[%clk 0:03:01.2]} 4... Bf5 {[%clk 0:03:01]} 5. Ng3 {[%clk 0:03:00.9]} 5...
Bg6 {[%clk 0:03:01.4]} 6. Nh3 {[%clk 0:03:01.6]} 6... Nf6 {[%clk 0:02:59]} 7.
Nf4 {[%clk 0:03:02.1]} 7... e5 {[%clk 0:02:57.6]} 8. Nxg6 {[%clk 0:03:02.3]}
8... hxg6 {[%clk 0:02:56.9]} 9. dxe5 {[%clk 0:03:03.2]} 9... Qa5+ {[%clk
0:02:52.6]} 10. Bd2 {[%clk 0:03:02.9]} 10... Qxe5+ {[%clk 0:02:53.1]} 11. Qe2
{[%clk 0:03:03.8]} 11... Nbd7 {[%clk 0:02:50]} 12. Qxe5+ {[%clk 0:03:02.7]}
12... Nxe5 {[%clk 0:02:49.6]} 13. f4 {[%clk 0:03:03.6]} 13... Ned7 {[%clk
0:02:48.5]} 14. O-O-O {[%clk 0:03:03.8]} 14... O-O-O {[%clk 0:02:44.6]} 15. Bc4
{[%clk 0:03:04.1]} 15... Nd5 {[%clk 0:02:38.6]} 16. Ne4 {[%clk 0:02:37.9]} 16...
Be7 {[%clk 0:02:29]} 17. Rde1 {[%clk 0:02:27.1]} 17... Rde8 {[%clk 0:02:25.2]}
18. g4 {[%clk 0:02:17.7]} 18... f5 {[%clk 0:02:21.3]} 19. gxf5 {[%clk
0:01:57.6]} 19... gxf5 {[%clk 0:02:22.2]} 20. Ng3 {[%clk 0:01:58.5]} 20... g6
{[%clk 0:02:22.3]} 21. Re6 {[%clk 0:01:58.4]} 21... Bf6 {[%clk 0:02:17.2]} 22.
Bxd5 {[%clk 0:01:55.9]} 22... cxd5 {[%clk 0:02:16.4]} 23. Rd6 {[%clk 0:01:56.8]}
23... Rh3 {[%clk 0:02:01.9]} 24. Rxd5 {[%clk 0:01:48.2]} 24... Reh8 {[%clk
0:02:02.3]} 25. Rd1 {[%clk 0:01:48.6]} 25... R8h7 {[%clk 0:01:49.6]} 26. Be3
{[%clk 0:01:47.1]} 26... Rxh2 {[%clk 0:01:48.4]} 27. a4 {[%clk 0:01:01.5]} 27...
Rg2 {[%clk 0:01:47.8]} 28. Nf1 {[%clk 0:00:57]} 28... Nb6 {[%clk 0:01:34.5]} 29.
Rc5+ {[%clk 0:00:54.3]} 29... Kb8 {[%clk 0:01:32.5]} 30. a5 {[%clk 0:00:54.6]}
30... Nd7 {[%clk 0:01:15.1]} 31. Rcd5 {[%clk 0:00:54]} 31... Kc7 {[%clk
0:01:04.3]} 32. Bxa7 {[%clk 0:00:52.7]} 32... Re2 {[%clk 0:01:04.2]} 33. Bb6+
{[%clk 0:00:45.6]} 33... Nxb6 {[%clk 0:00:50.9]} 34. axb6+ {[%clk 0:00:46.5]}
34... Kc8 {[%clk 0:00:51.6]} 35. Nd2 {[%clk 0:00:44.3]} 35... Rhh2 {[%clk
0:00:48.6]} 36. Rd6 {[%clk 0:00:43.5]} 36... Bd8 {[%clk 0:00:46.8]} 37. Rxg6
{[%clk 0:00:43.5]} 37... Be7 {[%clk 0:00:41.2]} 38. Rg8+ {[%clk 0:00:42.8]}
38... Kd7 {[%clk 0:00:40.9]} 39. Nf3+ {[%clk 0:00:43.3]} 39... Ke6 {[%clk
0:00:39.8]} 40. Nxh2 {[%clk 0:00:43.8]} 40... Rxh2 {[%clk 0:00:40]} 41. Rb8
{[%clk 0:00:40]} 41... Bd6 {[%clk 0:00:40.1]} 42. Rxb7 {[%clk 0:00:33.9]} 42...
Bxf4+ {[%clk 0:00:40.1]} 43. Kb1 {[%clk 0:00:34.6]} 43... Be5 {[%clk 0:00:39.7]}
44. Rbd7 {[%clk 0:00:32.1]} 44... Rh8 {[%clk 0:00:36.9]} 45. R7d2 {[%clk
0:00:30.5]} 45... Rh4 {[%clk 0:00:36]} 46. c3 {[%clk 0:00:28.9]} 46... Rc4
{[%clk 0:00:33.4]} 47. Re1 {[%clk 0:00:28.8]} 47... Kf6 {[%clk 0:00:24.9]} 48.
Rxe5 {[%clk 0:00:25.5]} 48... Kxe5 {[%clk 0:00:24.9]} 49. b7 {[%clk 0:00:25.7]}
1-0

[Event "*** SCC Grand Prix: Titled Tuesday Blitz"]
[Site "Chess.com"]
[Date "2020.06.02"]
[Round "2"]
[White "Reinaldovera"]
[Black "grzechu96"]
[Result "0-1"]
[WhiteElo "2246"]
[BlackElo "2632"]
[TimeControl "180+1"]
[EndTime "10:17:41 PDT"]
[Termination "grzechu96 won on time"]

1. d4 {[%clk 0:03:00.9]} 1... d5 {[%clk 0:02:59.2]} 2. c4 {[%clk 0:02:59.2]}
2... c6 {[%clk 0:02:59.4]} 3. Nc3 {[%clk 0:02:57.9]} 3... Nf6 {[%clk 0:02:58.5]}
4. cxd5 {[%clk 0:02:57.6]} 4... cxd5 {[%clk 0:02:58.5]} 5. Bf4 {[%clk 0:02:58]}
5... Nc6 {[%clk 0:02:57.5]} 6. e3 {[%clk 0:02:58.5]} 6... a6 {[%clk 0:02:57.5]}
7. Bd3 {[%clk 0:02:58.9]} 7... Bg4 {[%clk 0:02:57.2]} 8. Nge2 {[%clk 0:02:59.4]}
8... e6 {[%clk 0:02:56.4]} 9. O-O {[%clk 0:02:59.8]} 9... Bd6 {[%clk 0:02:55.8]}
10. f3 {[%clk 0:02:56.2]} 10... Bh5 {[%clk 0:02:55.4]} 11. Rc1 {[%clk
0:02:56.6]} 11... Bg6 {[%clk 0:02:53.1]} 12. Bxd6 {[%clk 0:02:55.1]} 12... Qxd6
{[%clk 0:02:53.1]} 13. Nf4 {[%clk 0:02:55.3]} 13... O-O {[%clk 0:02:47.8]} 14.
Nxg6 {[%clk 0:02:53.5]} 14... hxg6 {[%clk 0:02:48]} 15. f4 {[%clk 0:02:54.1]}
15... Rac8 {[%clk 0:02:39.8]} 16. g4 {[%clk 0:02:25.3]} 16... Nb4 {[%clk
0:02:01.1]} 17. Bb1 {[%clk 0:02:23.2]} 17... Ne4 {[%clk 0:02:00.3]} 18. Nxe4
{[%clk 0:01:56.9]} 18... dxe4 {[%clk 0:02:01.2]} 19. Bxe4 {[%clk 0:01:50.8]}
19... Nxa2 {[%clk 0:02:00.9]} 20. Rxc8 {[%clk 0:01:42]} 20... Rxc8 {[%clk
0:02:01.8]} 21. Qb3 {[%clk 0:01:30.4]} 21... Nb4 {[%clk 0:02:01.2]} 22. Bxb7
{[%clk 0:01:24.8]} 22... Rb8 {[%clk 0:02:00.3]} 23. Be4 {[%clk 0:01:06.7]} 23...
Nd5 {[%clk 0:01:59.9]} 24. Qd3 {[%clk 0:00:39.7]} 24... Rxb2 {[%clk 0:01:59]}
25. Rc1 {[%clk 0:00:19.7]} 25... Ne7 {[%clk 0:00:39]} 26. h4 {[%clk 0:00:16.3]}
26... Qb4 {[%clk 0:00:37.9]} 27. h5 {[%clk 0:00:12.1]} 27... Rb3 {[%clk
0:00:29.5]} 28. Qc4 {[%clk 0:00:07.6]} 28... Qxc4 {[%clk 0:00:27.4]} 29. Rxc4
{[%clk 0:00:08.1]} 29... Rxe3 {[%clk 0:00:28.1]} 30. Bb7 {[%clk 0:00:07.4]}
30... gxh5 {[%clk 0:00:26.4]} 31. gxh5 {[%clk 0:00:05.9]} 31... a5 {[%clk
0:00:25.8]} 32. Kf2 {[%clk 0:00:04.8]} 32... Rh3 {[%clk 0:00:24.4]} 33. Rc7
{[%clk 0:00:04.5]} 33... Nf5 {[%clk 0:00:24.1]} 34. d5 {[%clk 0:00:04.2]} 34...
Rxh5 {[%clk 0:00:18.4]} 35. dxe6 {[%clk 0:00:02.6]} 35... fxe6 {[%clk
0:00:19.3]} 36. Bc8 {[%clk 0:00:02.6]} 36... Nd4 {[%clk 0:00:19.6]} 37. Rd7
{[%clk 0:00:01.9]} 37... Rd5 {[%clk 0:00:20.1]} 0-1

[Event "*** SCC Grand Prix: Titled Tuesday Blitz"]
[Site "Chess.com"]
[Date "2020.06.02"]
[Round "2"]
[White "memer5334"]
[Black "Oligan22"]
[Result "1/2-1/2"]
[WhiteElo "2223"]
[BlackElo "2432"]
[TimeControl "180+1"]
[EndTime "10:17:41 PDT"]
[Termination "Game drawn by repetition"]

1. d4 {[%clk 0:03:00.9]} 1... d5 {[%clk 0:02:59.4]} 2. c4 {[%clk 0:03:00.6]}
2... dxc4 {[%clk 0:02:56.9]} 3. e4 {[%clk 0:02:59.2]} 3... Nc6 {[%clk
0:02:53.7]} 4. Nf3 {[%clk 0:02:58]} 4... Nf6 {[%clk 0:02:53.8]} 5. Nc3 {[%clk
0:02:57.7]} 5... Bg4 {[%clk 0:02:51.1]} 6. Be3 {[%clk 0:02:53.9]} 6... e6 {[%clk
0:02:40.3]} 7. Bxc4 {[%clk 0:02:50.2]} 7... Bb4 {[%clk 0:02:40]} 8. Bd3 {[%clk
0:02:37.8]} 8... Bxf3 {[%clk 0:02:09.4]} 9. gxf3 {[%clk 0:02:24.6]} 9... O-O
{[%clk 0:02:09.4]} 10. a3 {[%clk 0:02:10.3]} 10... Ba5 {[%clk 0:02:06.4]} 11.
Bc2 {[%clk 0:02:04]} 11... Bb6 {[%clk 0:01:47.2]} 12. Ne2 {[%clk 0:01:46.3]}
12... e5 {[%clk 0:01:46.7]} 13. d5 {[%clk 0:01:42.6]} 13... Na5 {[%clk
0:01:46.9]} 14. Bxb6 {[%clk 0:01:37.7]} 14... axb6 {[%clk 0:01:35.9]} 15. Qd3
{[%clk 0:01:37.3]} 15... c5 {[%clk 0:01:10.2]} 16. b4 {[%clk 0:01:15.2]} 16...
c4 {[%clk 0:01:10.3]} 17. Qd1 {[%clk 0:01:15.3]} 17... Nb3 {[%clk 0:01:10.2]}
18. Bxb3 {[%clk 0:01:15.6]} 18... cxb3 {[%clk 0:01:11.1]} 19. Qxb3 {[%clk
0:01:16.3]} 19... Rc8 {[%clk 0:01:07.9]} 20. Rg1 {[%clk 0:01:07.1]} 20... Nh5
{[%clk 0:01:03.5]} 21. Qe3 {[%clk 0:01:03.3]} 21... g6 {[%clk 0:00:37.1]} 22. f4
{[%clk 0:00:55.5]} 22... exf4 {[%clk 0:00:35.6]} 23. Nxf4 {[%clk 0:00:55]} 23...
Nxf4 {[%clk 0:00:35.7]} 24. Qxf4 {[%clk 0:00:55.9]} 24... Rc2 {[%clk 0:00:34.8]}
25. Rc1 {[%clk 0:00:37.6]} 25... Qc8 {[%clk 0:00:34.8]} 26. Rxc2 {[%clk
0:00:36.9]} 26... Qxc2 {[%clk 0:00:35.7]} 27. Rg3 {[%clk 0:00:28.6]} 27... Re8
{[%clk 0:00:35.3]} 28. Re3 {[%clk 0:00:26.7]} 28... Qc4 {[%clk 0:00:33.5]} 29.
Qf3 {[%clk 0:00:20.4]} 29... Rc8 {[%clk 0:00:30.9]} 30. Rd3 {[%clk 0:00:15.4]}
30... Qc1+ {[%clk 0:00:30.5]} 31. Rd1 {[%clk 0:00:15.4]} 31... Qc4 {[%clk
0:00:25.3]} 32. d6 {[%clk 0:00:14.5]} 32... Re8 {[%clk 0:00:25.3]} 33. d7 {[%clk
0:00:06.5]} 33... Rxe4+ {[%clk 0:00:25.3]} 34. Qxe4 {[%clk 0:00:07]} 34... Qxe4+
{[%clk 0:00:26]} 35. Kf1 {[%clk 0:00:07.5]} 35... Qc4+ {[%clk 0:00:23.9]} 36.
Ke1 {[%clk 0:00:06.9]} 36... Qe6+ {[%clk 0:00:21.8]} 37. Kf1 {[%clk 0:00:07.1]}
37... Qh3+ {[%clk 0:00:20.3]} 38. Ke1 {[%clk 0:00:07.7]} 38... Qe6+ {[%clk
0:00:16.2]} 39. Kf1 {[%clk 0:00:08.4]} 39... Qc4+ {[%clk 0:00:15.7]} 40. Ke1
{[%clk 0:00:07.5]} 40... Qe6+ {[%clk 0:00:15]} 1/2-1/2

[Event "*** SCC Grand Prix: Titled Tuesday Blitz"]
[Site "Chess.com"]
[Date "2020.06.02"]
[Round "2"]
[White "bratkoo"]
[Black "CzechmVIII"]
[Result "1-0"]
[WhiteElo "2418"]
[BlackElo "2160"]
[TimeControl "180+1"]
[EndTime "10:17:41 PDT"]
[Termination "bratkoo won on time"]

1. e4 {[%clk 0:03:00.9]} 1... c5 {[%clk 0:02:59.9]} 2. Nf3 {[%clk 0:02:59.5]}
2... d6 {[%clk 0:03:00]} 3. d4 {[%clk 0:02:59.3]} 3... cxd4 {[%clk 0:03:00.3]}
4. Nxd4 {[%clk 0:02:59]} 4... Nf6 {[%clk 0:03:00.9]} 5. Nc3 {[%clk 0:02:58.8]}
5... g6 {[%clk 0:03:01]} 6. Bc4 {[%clk 0:02:58.1]} 6... Bg7 {[%clk 0:03:00.3]}
7. Be3 {[%clk 0:02:58.1]} 7... O-O {[%clk 0:02:57.6]} 8. f3 {[%clk 0:02:58.4]}
8... Nc6 {[%clk 0:02:56.8]} 9. Qd2 {[%clk 0:02:57.4]} 9... Bd7 {[%clk
0:02:56.3]} 10. O-O-O {[%clk 0:02:56.1]} 10... Rc8 {[%clk 0:02:55.9]} 11. Bb3
{[%clk 0:02:56.3]} 11... Ne5 {[%clk 0:02:56]} 12. Kb1 {[%clk 0:02:56.3]} 12...
Nc4 {[%clk 0:02:55.3]} 13. Bxc4 {[%clk 0:02:56.3]} 13... Rxc4 {[%clk 0:02:55.8]}
14. g4 {[%clk 0:02:56.9]} 14... b5 {[%clk 0:02:55.9]} 15. b3 {[%clk 0:02:53.5]}
15... b4 {[%clk 0:02:55.6]} 16. bxc4 {[%clk 0:02:53]} 16... bxc3 {[%clk
0:02:55.9]} 17. Qxc3 {[%clk 0:02:53.3]} 17... Qc7 {[%clk 0:02:56.1]} 18. Qd3
{[%clk 0:02:33.7]} 18... Rc8 {[%clk 0:02:40.4]} 19. Nb3 {[%clk 0:02:26.2]} 19...
Be6 {[%clk 0:02:33.1]} 20. c5 {[%clk 0:02:22.4]} 20... d5 {[%clk 0:02:22.7]} 21.
g5 {[%clk 0:01:54.2]} 21... dxe4 {[%clk 0:02:21.6]} 22. fxe4 {[%clk 0:01:54.2]}
22... Nh5 {[%clk 0:02:19.3]} 23. Bd4 {[%clk 0:01:53.8]} 23... Nf4 {[%clk
0:01:52.5]} 24. Qe3 {[%clk 0:01:49.2]} 24... Bxd4 {[%clk 0:01:40]} 25. Nxd4
{[%clk 0:01:44.7]} 25... Rb8+ {[%clk 0:01:17.4]} 26. Kc1 {[%clk 0:01:16.9]}
26... Bxa2 {[%clk 0:01:07.8]} 27. Rhf1 {[%clk 0:01:16.2]} 27... Ne6 {[%clk
0:00:57.6]} 28. Nxe6 {[%clk 0:01:11.9]} 28... Bxe6 {[%clk 0:00:57.5]} 29. Qd4
{[%clk 0:01:12.1]} 29... Qa5 {[%clk 0:00:49.6]} 30. Rd3 {[%clk 0:01:00.5]} 30...
Ba2 {[%clk 0:00:35.5]} 31. Kd1 {[%clk 0:00:42.6]} 31... Qa6 {[%clk 0:00:24.8]}
32. Kd2 {[%clk 0:00:31.5]} 32... Bc4 {[%clk 0:00:22.9]} 33. Ra1 {[%clk 0:00:32]}
33... Bxd3 {[%clk 0:00:18.1]} 34. Rxa6 {[%clk 0:00:31]} 34... Bxa6 {[%clk
0:00:18.8]} 35. c6 {[%clk 0:00:31.2]} 35... Rc8 {[%clk 0:00:18.1]} 36. Qd7
{[%clk 0:00:31.1]} 36... Kg7 {[%clk 0:00:15.5]} 37. Ke3 {[%clk 0:00:30.4]} 37...
h6 {[%clk 0:00:11]} 38. gxh6+ {[%clk 0:00:28.7]} 38... Kxh6 {[%clk 0:00:11.1]}
39. c7 {[%clk 0:00:29.2]} 39... Kg7 {[%clk 0:00:09.6]} 40. Qxe7 {[%clk
0:00:29.5]} 40... Bb7 {[%clk 0:00:07.2]} 41. Kd4 {[%clk 0:00:28]} 41... a5
{[%clk 0:00:07.3]} 42. Kc5 {[%clk 0:00:28]} 42... a4 {[%clk 0:00:04.7]} 43. Kb6
{[%clk 0:00:28.1]} 43... Ba8 {[%clk 0:00:04]} 44. Qd7 {[%clk 0:00:27.8]} 44...
Rh8 {[%clk 0:00:03.2]} 45. c8=Q {[%clk 0:00:27.4]} 1-0

[Event "*** SCC Grand Prix: Titled Tuesday Blitz"]
[Site "Chess.com"]
[Date "2020.06.02"]
[Round "2"]
[White "tapu2"]
[Black "queen_iryna"]
[Result "1-0"]
[WhiteElo "2532"]
[BlackElo "2285"]
[TimeControl "180+1"]
[EndTime "10:17:42 PDT"]
[Termination "tapu2 won on time"]

1. e4 {[%clk 0:03:00.9]} 1... d6 {[%clk 0:02:59.2]} 2. d4 {[%clk 0:03:00.4]}
2... Nf6 {[%clk 0:02:56.2]} 3. Nc3 {[%clk 0:03:00.1]} 3... e5 {[%clk 0:02:56.5]}
4. Nf3 {[%clk 0:02:57.2]} 4... Nbd7 {[%clk 0:02:55.2]} 5. Be2 {[%clk 0:02:57.3]}
5... Be7 {[%clk 0:02:54.2]} 6. O-O {[%clk 0:02:56.6]} 6... O-O {[%clk
0:02:54.3]} 7. Re1 {[%clk 0:02:55.7]} 7... c6 {[%clk 0:02:53.8]} 8. a4 {[%clk
0:02:55.9]} 8... h6 {[%clk 0:02:53.4]} 9. Bf1 {[%clk 0:02:54.1]} 9... Re8 {[%clk
0:02:52.5]} 10. b3 {[%clk 0:02:53.9]} 10... Qc7 {[%clk 0:02:37.6]} 11. Bb2
{[%clk 0:02:50.5]} 11... Nf8 {[%clk 0:02:35]} 12. Bd3 {[%clk 0:02:24.8]} 12...
Ng6 {[%clk 0:02:30.2]} 13. Ne2 {[%clk 0:02:22.9]} 13... Bg4 {[%clk 0:02:21.4]}
14. Ng3 {[%clk 0:02:18.9]} 14... Bf8 {[%clk 0:02:07.1]} 15. h3 {[%clk
0:02:17.3]} 15... Bd7 {[%clk 0:01:42]} 16. Nd2 {[%clk 0:01:35.3]} 16... Rad8
{[%clk 0:01:38]} 17. Nc4 {[%clk 0:01:32.2]} 17... Bc8 {[%clk 0:00:59.6]} 18. Qf3
{[%clk 0:01:25]} 18... b5 {[%clk 0:00:33.1]} 19. axb5 {[%clk 0:01:10.6]} 19...
cxb5 {[%clk 0:00:34]} 20. Ne3 {[%clk 0:01:06.9]} 20... a6 {[%clk 0:00:34.1]} 21.
Nef5 {[%clk 0:00:55.8]} 21... Bxf5 {[%clk 0:00:30]} 22. Nxf5 {[%clk 0:00:55.4]}
22... Ne7 {[%clk 0:00:17]} 23. Nxe7+ {[%clk 0:00:49.2]} 23... Qxe7 {[%clk
0:00:17.1]} 24. c4 {[%clk 0:00:48.7]} 24... Qb7 {[%clk 0:00:12.1]} 25. d5 {[%clk
0:00:47.2]} 25... Nd7 {[%clk 0:00:11.3]} 26. cxb5 {[%clk 0:00:45.6]} 26... axb5
{[%clk 0:00:12.2]} 27. b4 {[%clk 0:00:46]} 27... Be7 {[%clk 0:00:08]} 28. Ra5
{[%clk 0:00:44.3]} 28... Nb6 {[%clk 0:00:05.7]} 29. Bxb5 {[%clk 0:00:43.9]}
29... Rf8 {[%clk 0:00:05.2]} 30. Bc6 {[%clk 0:00:44.1]} 30... Qc7 {[%clk
0:00:04.6]} 31. Qd3 {[%clk 0:00:42.6]} 31... Rb8 {[%clk 0:00:03.5]} 32. Bc3
{[%clk 0:00:42.3]} 32... Bg5 {[%clk 0:00:02.7]} 33. Rea1 {[%clk 0:00:42]} 33...
Bf4 {[%clk 0:00:02.9]} 34. g3 {[%clk 0:00:41.2]} 34... Bg5 {[%clk 0:00:02.5]}
35. h4 {[%clk 0:00:41.3]} 35... Bf6 {[%clk 0:00:02.7]} 36. Ra7 {[%clk
0:00:41.3]} 36... Qc8 {[%clk 0:00:03.1]} 37. b5 {[%clk 0:00:41.3]} 37... Qh3
{[%clk 0:00:03.1]} 38. Qf1 {[%clk 0:00:41]} 38... Qg4 {[%clk 0:00:02.9]} 39. Qd1
{[%clk 0:00:39.5]} 39... Qxe4 {[%clk 0:00:02.4]} 40. Ba5 {[%clk 0:00:29.6]} 1-0

[Event "*** SCC Grand Prix: Titled Tuesday Blitz"]
[Site "Chess.com"]
[Date "2020.06.02"]
[Round "2"]
[White "woodhy"]
[Black "ChessAintFun"]
[Result "1/2-1/2"]
[WhiteElo "2443"]
[BlackElo "2657"]
[TimeControl "180+1"]
[EndTime "10:17:43 PDT"]
[Termination "Game drawn by agreement"]

1. e4 {[%clk 0:02:35.6]} 1... c5 {[%clk 0:02:59]} 2. Nf3 {[%clk 0:02:35.3]} 2...
e6 {[%clk 0:02:59.4]} 3. d4 {[%clk 0:02:35.6]} 3... cxd4 {[%clk 0:03:00.3]} 4.
Nxd4 {[%clk 0:02:36.3]} 4... Nc6 {[%clk 0:03:01.1]} 5. c4 {[%clk 0:02:34.8]}
5... Nf6 {[%clk 0:03:00.4]} 6. Nc3 {[%clk 0:02:34.1]} 6... Bb4 {[%clk
0:02:56.2]} 7. Nxc6 {[%clk 0:02:33.7]} 7... bxc6 {[%clk 0:02:57.1]} 8. Bd3
{[%clk 0:02:33.4]} 8... e5 {[%clk 0:02:57.5]} 9. O-O {[%clk 0:02:32.9]} 9... Rb8
{[%clk 0:02:57.2]} 10. Qc2 {[%clk 0:02:30.8]} 10... O-O {[%clk 0:02:50.3]} 11.
a3 {[%clk 0:02:30.4]} 11... Bc5 {[%clk 0:02:46.8]} 12. b4 {[%clk 0:02:30]} 12...
Bd4 {[%clk 0:02:46.4]} 13. Rb1 {[%clk 0:02:29.8]} 13... a5 {[%clk 0:02:37.8]}
14. Bd2 {[%clk 0:02:21.7]} 14... axb4 {[%clk 0:02:36.1]} 15. axb4 {[%clk
0:02:22.6]} 15... Qe7 {[%clk 0:02:22.8]} 16. c5 {[%clk 0:02:17.3]} 16... d6
{[%clk 0:02:17.2]} 17. cxd6 {[%clk 0:02:12.6]} 17... Qxd6 {[%clk 0:02:18.1]} 18.
Ne2 {[%clk 0:02:12.5]} 18... Rd8 {[%clk 0:02:09.6]} 19. Nxd4 {[%clk 0:02:01.1]}
19... Qxd4 {[%clk 0:01:49.6]} 20. Be3 {[%clk 0:01:24.6]} 20... Qxd3 {[%clk
0:01:02.2]} 21. Rbd1 {[%clk 0:01:22.9]} 21... Ba6 {[%clk 0:01:02.8]} 22. Rxd3
{[%clk 0:01:20.6]} 22... Bxd3 {[%clk 0:01:03.7]} 23. Qxc6 {[%clk 0:01:16.8]}
23... Bxf1 {[%clk 0:01:03.7]} 24. Kxf1 {[%clk 0:01:17.7]} 24... Rxb4 {[%clk
0:01:03.1]} 25. g3 {[%clk 0:00:57.3]} 25... Nxe4 {[%clk 0:00:52.8]} 26. Qc7
{[%clk 0:00:54.7]} 26... Re8 {[%clk 0:00:46.3]} 27. Qc6 {[%clk 0:00:53.6]} 27...
Reb8 {[%clk 0:00:25.6]} 28. Qd5 {[%clk 0:00:46.9]} 28... Nf6 {[%clk 0:00:16]}
29. Qxe5 {[%clk 0:00:44.7]} 29... Ng4 {[%clk 0:00:16.1]} 30. Qg5 {[%clk
0:00:44.5]} 30... Nxe3+ {[%clk 0:00:15.4]} 31. Qxe3 {[%clk 0:00:44.6]} 31... g6
{[%clk 0:00:16.1]} 32. h4 {[%clk 0:00:44.4]} 32... h5 {[%clk 0:00:16.7]} 33. Kg2
{[%clk 0:00:44]} 33... R4b5 {[%clk 0:00:16.8]} 34. Qc3 {[%clk 0:00:43.9]} 34...
Re8 {[%clk 0:00:15]} 35. Qc6 {[%clk 0:00:42.6]} 35... Rbe5 {[%clk 0:00:14.4]}
36. Qd7 {[%clk 0:00:41.6]} 36... R8e7 {[%clk 0:00:14.7]} 37. Qd8+ {[%clk
0:00:41.5]} 37... Kg7 {[%clk 0:00:15.2]} 38. Qd4 {[%clk 0:00:42.4]} 38... Kh7
{[%clk 0:00:15.8]} 39. Qc3 {[%clk 0:00:42]} 39... Rd5 {[%clk 0:00:15.1]} 40. Qb3
{[%clk 0:00:40.2]} 40... Red7 {[%clk 0:00:14.9]} 41. Qf3 {[%clk 0:00:39.5]}
41... Rd2 {[%clk 0:00:15]} 42. Qb3 {[%clk 0:00:38.2]} 42... Kg8 {[%clk
0:00:14.7]} 43. Qb8+ {[%clk 0:00:38]} 43... Rd8 {[%clk 0:00:15.3]} 44. Qb3
{[%clk 0:00:37.5]} 44... Re2 {[%clk 0:00:14.6]} 45. Qc3 {[%clk 0:00:35.3]} 45...
Rdd2 {[%clk 0:00:14.6]} 46. Qc8+ {[%clk 0:00:35.5]} 46... Kg7 {[%clk 0:00:15]}
47. Qc4 {[%clk 0:00:35.9]} 47... Kh7 {[%clk 0:00:15.7]} 48. Qxf7+ {[%clk
0:00:35.3]} 48... Kh6 {[%clk 0:00:14.9]} 49. Qf8+ {[%clk 0:00:34.2]} 49... Kh7
{[%clk 0:00:15.4]} 50. Qf7+ {[%clk 0:00:34.8]} 50... Kh6 {[%clk 0:00:16.1]}
1/2-1/2

[Event "*** SCC Grand Prix: Titled Tuesday Blitz"]
[Site "Chess.com"]
[Date "2020.06.02"]
[Round "2"]
[White "Tormoz"]
[Black "Angel_Hranitel_37"]
[Result "1-0"]
[WhiteElo "2661"]
[BlackElo "2383"]
[TimeControl "180+1"]
[EndTime "10:17:43 PDT"]
[Termination "Tormoz won by checkmate"]

1. d4 {[%clk 0:03:00.9]} 1... Nf6 {[%clk 0:02:59.2]} 2. Nf3 {[%clk 0:02:56.7]}
2... g6 {[%clk 0:02:59.4]} 3. g3 {[%clk 0:02:56.5]} 3... Bg7 {[%clk 0:02:59.6]}
4. Bg2 {[%clk 0:02:57.4]} 4... O-O {[%clk 0:02:59.7]} 5. O-O {[%clk 0:02:58.3]}
5... d6 {[%clk 0:02:59.9]} 6. c4 {[%clk 0:02:58.4]} 6... Nc6 {[%clk 0:02:59.5]}
7. Nc3 {[%clk 0:02:58.1]} 7... Bf5 {[%clk 0:02:59.7]} 8. b3 {[%clk 0:02:53.3]}
8... Ne4 {[%clk 0:02:57.2]} 9. Bb2 {[%clk 0:02:52.9]} 9... Nxc3 {[%clk
0:02:56.3]} 10. Bxc3 {[%clk 0:02:53.8]} 10... Be4 {[%clk 0:02:57]} 11. e3 {[%clk
0:02:54]} 11... e6 {[%clk 0:02:53.2]} 12. Re1 {[%clk 0:02:47.4]} 12... d5 {[%clk
0:02:53.2]} 13. Bf1 {[%clk 0:02:45.7]} 13... g5 {[%clk 0:02:17.6]} 14. Nd2
{[%clk 0:02:40.1]} 14... Bg6 {[%clk 0:02:17]} 15. Bg2 {[%clk 0:02:40]} 15... h5
{[%clk 0:01:58.9]} 16. b4 {[%clk 0:02:32]} 16... Ne7 {[%clk 0:01:46.3]} 17. b5
{[%clk 0:02:30.5]} 17... c6 {[%clk 0:00:48.8]} 18. Qa4 {[%clk 0:02:12.5]} 18...
dxc4 {[%clk 0:00:34.1]} 19. bxc6 {[%clk 0:02:08.8]} 19... Nxc6 {[%clk
0:00:29.6]} 20. Qb5 {[%clk 0:01:58.7]} 20... Rb8 {[%clk 0:00:14.1]} 21. Nxc4
{[%clk 0:01:56.8]} 21... Bd3 {[%clk 0:00:11.5]} 22. Rad1 {[%clk 0:01:46.4]}
22... a6 {[%clk 0:00:10.7]} 23. Qb3 {[%clk 0:01:46.2]} 23... Bg6 {[%clk
0:00:07.9]} 24. Nb6 {[%clk 0:01:43.7]} 24... Ne7 {[%clk 0:00:06.1]} 25. Ba5
{[%clk 0:01:26.5]} 25... Qe8 {[%clk 0:00:05.7]} 26. Bb4 {[%clk 0:01:23.7]} 26...
Qd8 {[%clk 0:00:04.9]} 27. Bc5 {[%clk 0:01:21]} 27... Re8 {[%clk 0:00:04.9]} 28.
d5 {[%clk 0:00:55.3]} 28... Nc8 {[%clk 0:00:05.6]} 29. dxe6 {[%clk 0:00:53.8]}
29... Qc7 {[%clk 0:00:05.8]} 30. Nd7 {[%clk 0:00:48.5]} 30... b6 {[%clk
0:00:05.2]} 31. Nxb8 {[%clk 0:00:46.7]} 31... Qxb8 {[%clk 0:00:05.5]} 32. exf7+
{[%clk 0:00:44.1]} 32... Bxf7 {[%clk 0:00:06.4]} 33. Bd5 {[%clk 0:00:44.3]}
33... Qc7 {[%clk 0:00:05.9]} 34. Bxb6 {[%clk 0:00:40.6]} 34... Nxb6 {[%clk
0:00:05.4]} 35. Bxf7+ {[%clk 0:00:40.5]} 35... Qxf7 {[%clk 0:00:05.3]} 36. Qxb6
{[%clk 0:00:40.4]} 36... Kh8 {[%clk 0:00:04.9]} 37. Rd8 {[%clk 0:00:38.3]} 37...
Kh7 {[%clk 0:00:04.3]} 38. Qb1+ {[%clk 0:00:36.3]} 38... Kh6 {[%clk 0:00:02.9]}
39. Red1 {[%clk 0:00:34.3]} 39... Rf8 {[%clk 0:00:03.3]} 40. R1d6+ {[%clk
0:00:33.8]} 40... Bf6 {[%clk 0:00:03.4]} 41. Rxf8 {[%clk 0:00:33]} 41... Qxf8
{[%clk 0:00:04.3]} 42. Qb6 {[%clk 0:00:32.7]} 42... Kg7 {[%clk 0:00:05.2]} 43.
Qxa6 {[%clk 0:00:32.4]} 43... Be5 {[%clk 0:00:04.6]} 44. Rd7+ {[%clk 0:00:31.2]}
44... Kg8 {[%clk 0:00:03.7]} 45. Qg6+ {[%clk 0:00:30.6]} 45... Kh8 {[%clk
0:00:04.3]} 46. Qh7# {[%clk 0:00:30.4]} 1-0